fUST/lending_fUST_20250408
["ID","MTS","AMOUNT","RATE_DAILY","PERIOD"]
[357506704,1744095064411,-390.1040898,0.00029658,5]
[357506705,1744095064421,-2000.0,0.00029907,4]
[357506706,1744095064431,-153.70153521,0.0003,10]
[357506707,1744095064442,-1514.24296937,0.0003,7]
[357506708,1744095064451,-12530.86563381,0.0003,7]
[357506709,1744095064461,-179.89206476,0.00030001,4]
[357506710,1744095064471,-200.0,0.00030136,2]
[357506711,1744095064480,-506.5078414,0.00030352,5]
[357506712,1744095064490,-489.7726421,0.00030521,2]
[357506713,1744095064500,-151.0,0.000307,10]
[357506714,1744095064509,-6579.26025965,0.0003071,3]
[357506715,1744095064519,-160.0,0.00031265,3]
[357506716,1744095064529,-419.46366559,0.000313,3]
[357506717,1744095064538,-837.41003169,0.000313,3]
[357506718,1744095064547,-200.0,0.00031506,2]
[357506719,1744095064559,-1595.84285336,0.000318,7]
[357506720,1744095064569,-2000.0,0.00031926,4]
[357506721,1744095064579,-168.0,0.00032273,7]
[357506722,1744095064588,-168.0,0.00032273,7]
[357506723,1744095064598,-288.9796707,0.00032273,7]
[357506724,1744095064607,-150.0,0.00032449,2]
[357506725,1744095064617,-543.0,0.00032449,2]
[357506726,1744095064627,-907.424,0.00032449,2]
[357506727,1744095064637,-150.0,0.00032449,2]
[357506728,1744095064648,-160.0,0.00032636,4]
[357506729,1744095064658,-200.0,0.00032876,2]
[357506730,1744095064668,-1000.0,0.00032877,5]
[357506731,1744095064678,-151.0,0.000332,19]
[357506732,1744095064688,-150.0,0.000333,2]
[357506733,1744095064699,-157.167506,0.00033475,2]
[357506734,1744095064709,-2000.0,0.00033944,4]
[357506735,1744095064719,-160.0,0.00034007,5]
[357506736,1744095064729,-200.0,0.00034246,2]
[357506737,1744095064739,-1284.8205332,0.00034919,4]
[357506738,1744095064751,-160.0,0.00034999,10]
[357506739,1744095064761,-91221.12231111,0.00035,14]
[357506740,1744095064771,-1000.0,0.00035,120]
[357506741,1744095064781,-576.99,0.00035074,30]
[357506742,1744095064790,-771.166,0.00035166,7]
[357506743,1744095064800,-2200.0,0.00035166,7]
[357506744,1744095064811,-500.0,0.00035171,5]
[357506745,1744095064820,-1500.0,0.00035171,5]
[357506746,1744095064830,-1500.0,0.00035171,5]
[357506747,1744095064840,-1500.0,0.00035171,5]
[357506748,1744095064850,-1500.0,0.00035171,5]
[357506749,1744095064860,-160.0,0.000352,7]
[357506750,1744095064870,-160.0,0.00035311,2]
[357506751,1744095064881,-34200.21093794,0.00035333,2]
[357506752,1744095064891,-498.689573,0.00035333,14]
[357506753,1744095064901,-498.689573,0.00035333,14]
[357506754,1744095064911,-151.0,0.00035333,14]
[357506755,1744095064921,-2048.230839,0.00035333,2]
[357506756,1744095064931,-2048.230839,0.00035333,2]
[357506757,1744095064940,-151.0,0.00035333,14]
[357506758,1744095064950,-151.0,0.00035333,14]
[357506759,1744095064961,-151.0,0.00035333,2]
[357506760,1744095064971,-151.0,0.00035333,2]
[357506761,1744095064981,-235.872052,0.00035333,14]
[357506762,1744095064990,-235.872052,0.00035333,14]
[357506763,1744095065000,-262.379866,0.00035333,14]
[357506764,1744095065010,-151.0,0.00035333,14]
[357506765,1744095065020,-151.0,0.00035333,14]
[357506766,1744095065029,-12530.86563381,0.00035336,2]
[357506767,1744095065039,-160.0,0.00035378,6]
[357506768,1744095065049,-150.0,0.00035449,2]
[357506769,1744095065058,-543.0,0.00035449,2]
[357506770,1744095065068,-1500.0,0.00035471,2]
[357506771,1744095065078,-2500.0,0.00035615,60]
[357506772,1744095065087,-200.0,0.00035616,2]
[357506773,1744095065097,-646.63193914,0.00035673,5]
[357506774,1744095065107,-150.16910683,0.00035673,5]
[357506775,1744095065116,-250.49597576,0.00035673,5]
[357506776,1744095065126,-150.0,0.00035673,5]
[357506777,1744095065136,-500.0,0.00035673,5]
[357506778,1744095065145,-160.0,0.000357,3]
[357506779,1744095065157,-160.0,0.000357,7]
[357506780,1744095065167,-160.0,0.000357,30]
[357506781,1744095065176,-1667.24,0.000357,7]
[357506782,1744095065185,-314920.55,0.000357,30]
[357506783,1744095065199,-151.0,0.000357,14]
[357506784,1744095065208,-151.0,0.000357,14]
[357506785,1744095065218,-151.0,0.000357,14]
[357506786,1744095065227,-151.0,0.000357,14]
[357506787,1744095065238,-151.0,0.000357,14]
[357506788,1744095065247,-151.0,0.000357,14]
[357506789,1744095065258,-151.0,0.000357,14]
[357506790,1744095065268,-389.941933,0.000357,14]
[357506791,1744095065278,-389.941933,0.000357,14]
[357506792,1744095065287,-498.689573,0.000357,14]
[357506793,1744095065296,-498.689573,0.000357,14]
[357506794,1744095065307,-151.0,0.000357,14]
[357506795,1744095065316,-2048.230839,0.000357,2]
[357506796,1744095065325,-2048.230839,0.000357,2]
[357506797,1744095065335,-151.0,0.000357,14]
[357506798,1744095065344,-282.881137,0.000357,14]
[357506799,1744095065353,-151.0,0.000357,2]
[357506800,1744095065363,-151.0,0.000357,2]
[357506801,1744095065372,-235.872052,0.000357,14]
[357506802,1744095065383,-235.872052,0.000357,14]
[357506803,1744095065392,-151.0,0.000357,14]
[357506804,1744095065402,-151.0,0.000357,14]
[357506805,1744095065412,-500.0,0.00035766,13]
[357506806,1744095065421,-611.1830386,0.0003577,2]
[357506807,1744095065430,-150.07313899,0.00035873,5]
[357506808,1744095065440,-150.12984243,0.00035873,5]
[357506809,1744095065449,-453.79571,0.0003589,2]
[357506810,1744095065458,-201983.68810982,0.000359,7]
[357506811,1744095065467,-358.0,0.00035925,14]
[357506812,1744095065478,-358.0,0.00035925,14]
[357506813,1744095065487,-157.53178259,0.00035925,14]
[357506814,1744095065496,-159.5185218,0.00035929,5]
[357506815,1744095065506,-2000.0,0.00035963,4]
[357506816,1744095065515,-70835.39770982,0.0003599,2]
[357506817,1744095065525,-152.963158,0.0003599,14]
[357506818,1744095065535,-234.24959992,0.00035999,2]
[357506819,1744095065544,-161.39336328,0.00035999,2]
[357506820,1744095065554,-5000.0,0.00036,30]
[357506821,1744095065564,-608727.21612528,0.00036,2]
[357506822,1744095065574,-1000.0,0.00036,2]
[357506823,1744095065583,-150.0,0.00036,86]
[357506824,1744095065593,-21670.47604952,0.00036,2]
[357506825,1744095065703,-508.22395177,0.0001968,2]
[357506826,1744095065713,-1039.19,0.00021771,2]
[357506827,1744095065723,-77799.58181901,0.00036,2]
[357506828,1744095065735,-14457.36455187,0.00036,2]
[357506829,1744095066775,-68919.96977206,0.00036,2]
[357506830,1744095066787,-107755.56203198,0.00036,2]
[357506831,1744095066798,-160.0,0.00036,3]
[357506832,1744095066807,-2312.59,0.00036,2]
[357506833,1744095066817,-151.0,0.00036,14]
[357506834,1744095066827,-151.0,0.00036,14]
[357506835,1744095066837,-150.19837571,0.00036,30]
[357506836,1744095066847,-205.096391,0.00036,14]
[357506837,1744095066856,-151.62448049,0.00036,30]
[357506838,1744095066865,-300.08686792,0.00036,20]
[357506839,1744095066875,-150.29673519,0.00036,30]
[357506840,1744095066886,-150.08,0.00036,30]
[357506841,1744095066896,-150.18903886,0.00036,22]
[357506842,1744095066907,-300.14238311,0.00036,30]
[357506843,1744095066916,-150.315781,0.00036,30]
[357506844,1744095066926,-150.34853812,0.00036,30]
[357506845,1744095066936,-500.0,0.00036,30]
[357506846,1744095066945,-150.21896084,0.00036,30]
[357506847,1744095066955,-151.0,0.00036,14]
[357506848,1744095066965,-151.0,0.00036,14]
[357506849,1744095066974,-211.845958,0.00036,14]
[357506850,1744095066984,-151.0,0.00036,14]
[357506851,1744095066993,-151.0,0.00036,14]
[357506852,1744095067003,-151.0,0.00036,14]
[357506853,1744095067012,-151.0,0.00036,14]
[357506854,1744095067022,-389.941933,0.00036,14]
[357506855,1744095067031,-389.941933,0.00036,14]
[357506856,1744095067041,-498.689573,0.00036,14]
[357506857,1744095067051,-498.689573,0.00036,14]
[357506858,1744095067061,-160.0,0.00036,7]
[357506859,1744095067070,-160.0,0.00036,30]
[357506860,1744095067080,-150.20594556,0.00036,30]
[357506861,1744095067089,-160.0,0.00036,3]
[357506862,1744095067099,-300.10402366,0.00036,30]
[357506863,1744095067108,-150.27659897,0.00036,30]
[357506864,1744095067118,-150.25447333,0.00036,30]
[357506865,1744095067128,-150.08,0.00036,30]
[357506866,1744095067137,-150.08,0.00036,30]
[357506867,1744095067147,-150.08,0.00036,30]
[357506868,1744095067157,-150.41115734,0.00036,30]
[357506869,1744095067167,-150.33335888,0.00036,30]
[357506870,1744095067178,-151.0,0.00036,14]
[357506871,1744095067194,-200.52580294,0.00036,30]
[357506872,1744095067208,-150.08,0.00036,30]
[357506873,1744095067218,-150.08,0.00036,2]
[357506874,1744095067228,-2048.230839,0.00036,2]
[357506875,1744095067237,-2048.230839,0.00036,2]
[357506876,1744095067247,-151.0,0.00036,14]
[357506877,1744095067257,-151.0,0.00036,2]
[357506878,1744095067266,-151.0,0.00036,2]
[357506879,1744095067278,-150.08,0.00036,30]
[357506880,1744095067288,-12530.86563381,0.00036,30]
[357506881,1744095067298,-235.872052,0.00036,14]
[357506882,1744095067308,-235.872052,0.00036,14]
[357506883,1744095067317,-419.46366559,0.00036,30]
[357506884,1744095067326,-419.46366559,0.00036,7]
[357506885,1744095067336,-150.08,0.00036,30]
[357506886,1744095067345,-150.08,0.00036,30]
[357506887,1744095067355,-150.08,0.00036,30]
[357506888,1744095067364,-150.97968269,0.00036,30]
[357506889,1744095067375,-150.08,0.00036,30]
[357506890,1744095067385,-187.1469345,0.00036,30]
[357506891,1744095067395,-150.08,0.00036,30]
[357506892,1744095067404,-837.41003169,0.00036,30]
[357506893,1744095067414,-837.41003169,0.00036,7]
[357506894,1744095067423,-151.0,0.00036,14]
[357506895,1744095067433,-151.0,0.00036,14]
[357506896,1744095067442,-1500.0,0.00036073,5]
[357506897,1744095067451,-1500.0,0.00036073,5]
[357506898,1744095067461,-1500.0,0.00036073,5]
[357506899,1744095067471,-1500.0,0.00036073,5]
[357506900,1744095067480,-1500.0,0.00036073,2]
[357506901,1744095067490,-1500.0,0.00036101,5]
[357506902,1744095067499,-1500.0,0.00036101,5]
[357506903,1744095067509,-1500.0,0.00036101,5]
[357506904,1744095067518,-2500.0,0.00036163,60]
[357506905,1744095067527,-151.0,0.000362,14]
[357506906,1744095067536,-151.0,0.000362,14]
[357506907,1744095067546,-498.689573,0.000362,14]
[357506908,1744095067555,-498.689573,0.000362,14]
[357506909,1744095067566,-151.0,0.000362,14]
[357506910,1744095067576,-2048.230839,0.000362,2]
[357506911,1744095067585,-2048.230839,0.000362,2]
[357506912,1744095067596,-151.0,0.000362,14]
[357506913,1744095067605,-151.0,0.000362,2]
[357506914,1744095067615,-222.003635,0.000362,2]
[357506915,1744095067624,-235.872052,0.000362,14]
[357506916,1744095067635,-235.872052,0.000362,14]
[357506917,1744095067644,-151.0,0.000362,14]
[357506918,1744095067654,-151.0,0.000362,14]
[357506919,1744095067664,-157.167506,0.000365,2]
[357506920,1744095067673,-175.379525,0.000365,2]
[357506921,1744095067683,-150.08,0.00036548,30]
[357506922,1744095067692,-501.79666374,0.00036548,30]
[357506923,1744095067702,-150.08,0.00036548,30]
[357506924,1744095067711,-150.08,0.00036548,30]
[357506925,1744095067720,-150.08,0.00036548,30]
[357506926,1744095067730,-150.08,0.00036548,30]
[357506927,1744095067739,-150.08,0.00036548,30]
[357506928,1744095067749,-150.08,0.00036548,30]
[357506929,1744095067758,-150.08,0.00036548,30]
[357506930,1744095067855,-150.08,0.00036548,30]
[357506931,1744095067865,-150.08,0.00036548,30]
[357506932,1744095067875,-150.08,0.00036548,30]
[357506933,1744095067886,-151.0,0.00036548,14]
[357506934,1744095067896,-151.0,0.00036548,14]
[357506935,1744095067906,-2500.0,0.00036711,60]
[357506936,1744095067915,-160.0,0.00036748,7]
[357506937,1744095067925,-161.3127047,0.00036748,5]
[357506938,1744095067935,-160.0,0.00036748,5]
[357506939,1744095067945,-160.0,0.00036748,5]
[357506940,1744095067954,-160.0,0.00036748,7]
[357506941,1744095067964,-160.0,0.00036748,5]
[357506942,1744095067974,-157.167506,0.00036763,30]
[357506943,1744095067984,-1981.53724801,0.00036898,120]
[357506944,1744095068002,-500.0,0.00024785,2]
[357506945,1744095068011,-72.60493742,0.00036898,120]
[357506946,1744095068021,-167.49456348,0.00036986,2]
[357506947,1744095068031,-200.26890559,0.00037096,30]
[357506948,1744095068040,-150.64941332,0.00037096,30]
[357506949,1744095068050,-151.4220277,0.00037096,30]
[357506950,1744095068060,-150.1214324,0.00037096,30]
[357506951,1744095068069,-202.02737177,0.00037096,30]
[357506952,1744095068079,-150.08,0.00037096,30]
[357506953,1744095068088,-154.25110152,0.00037096,30]
[357506954,1744095068098,-156.01287585,0.00037096,30]
[357506955,1744095068108,-150.08,0.00037096,30]
[357506956,1744095068117,-150.08,0.00037096,30]
[357506957,1744095068126,-152.14879173,0.00037096,30]
[357506958,1744095068136,-205.096391,0.00037096,14]
[357506959,1744095068146,-1008.87493241,0.00037105,5]
[357506960,1744095068156,-2500.0,0.00037259,60]
[357506961,1744095068165,-151.0,0.00037259,14]
[357506962,1744095068175,-151.0,0.00037259,14]
[357506963,1744095068185,-389.941933,0.00037259,14]
[357506964,1744095068197,-389.941933,0.00037259,14]
[357506965,1744095068207,-150.0,0.000375,112]
[357506966,1744095068217,-1500.0,0.00037548,5]
[357506967,1744095068227,-1500.0,0.00037548,5]
[357506968,1744095068236,-150.08,0.00037644,30]
[357506969,1744095068245,-150.08,0.00037644,30]
[357506970,1744095068255,-150.08,0.00037644,30]
[357506971,1744095068264,-1833.12639007,0.00037981,4]
[357506972,1744095068374,-597.95323649,0.00022045,2]
[357506973,1744095068541,-0.00279134,0.00022045,2]
[357506974,1744095068553,-441.23397217,0.00022045,2]
[357506975,1744095068563,-1039.19,0.00022319,2]
[357506976,1744095068573,-1039.19,0.00022593,2]
[357506977,1744095068582,-1039.19,0.00022867,2]
[357506978,1744095068592,-40.15151579,0.00023141,2]
[357506979,1744095068802,-2425.22647164,0.00019524,2]
[357506980,1744095068812,-999.03848421,0.00023141,2]
[357506981,1744095068822,-1039.19,0.00023415,2]
[357506982,1744095068832,-1039.19,0.00023689,2]
[357506983,1744095068842,-1039.19,0.00023963,2]
[357506984,1744095068851,-1039.19,0.00024237,2]
[357506985,1744095068861,-1039.19,0.00024511,2]
[357506986,1744095068871,-1039.19,0.00024785,2]
[357506987,1744095068880,-500.0,0.00025059,2]
[357506988,1744095068890,-1039.19,0.00025059,2]
[357506989,1744095068900,-500.0,0.00025333,2]
[357506990,1744095068910,-1039.19,0.00025333,2]
[357506991,1744095068919,-500.0,0.00025607,2]
[357506992,1744095068928,-1039.19,0.00025607,2]
[357506993,1744095068938,-383.52367826,0.00025881,2]
[357506994,1744095068947,-1039.27449615,0.00025881,2]
[357506995,1744095068957,-150.193,0.00029449,2]
[357506996,1744095068967,-401.0,0.00029449,2]
[357506997,1744095068976,-419.46366559,0.00035311,2]
[357506998,1744095068986,-12530.86563381,0.00035311,2]
[357506999,1744095068996,-166.87360993,0.00037981,4]
[357507000,1744095069006,-200.0,0.00038,120]
[357507001,1744095069015,-210.0,0.00038,120]
[357507002,1744095069025,-1667.24,0.00038,7]
[357507003,1744095069035,-26874.2520446,0.00038,30]
[357507004,1744095069137,-3214.38775915,0.00038,30]
[357507005,1744095069224,-500.0,0.00019579,2]
[357507006,1744095069235,-500.0,0.0001958,2]
[357507007,1744095069244,-58.16333713,0.00019853,2]
[357507008,1744095069256,-441.83666287,0.00019853,2]
[357507009,1744095069267,-500.0,0.00020127,2]
[357507010,1744095069278,-500.0,0.00020401,2]
[357507011,1744095069287,-145.76333713,0.00038,30]
[357507012,1744095070902,-24817.18079843,0.00038,30]
[357507013,1744095070913,-888.6176791,0.00038,30]
[357507014,1744095071160,-219.17984419,0.00019579,2]
[357507015,1744095074872,-219.17984419,0.00019579,2]
[357507016,1744095078268,-61.64031162,0.00019579,2]
[357507017,1744095078291,-163.27446645,0.00019579,2]
[357507018,1744095083414,-224.91477807,0.00019579,2]
[357507019,1744095085466,165.0,0.0002,60]
[357507020,1744095085970,-111.81075548,0.00019579,2]
[357507021,1744095085994,-149.88373668,0.00019579,2]
[357507022,1744095384588,-360.471519,0.00018629,2]
[357507023,1744095656431,-168.96331788,0.00018503,2]
[357507024,1744095661346,-11.27244112,0.00018503,2]
[357507025,1744095661374,-40.7418413,0.00018629,2]
[357507026,1744095661399,-156.72050417,0.00019469,2]
[357507027,1744095661423,-87.27310136,0.00019479,2]
[357507028,1744095746877,-158.56468884,0.00018529,2]
[357507029,1744095940181,-137.44319911,0.00018529,2]
[357507030,1744095940202,-1592.60655327,0.00019329,2]
[357507031,1744095940222,-713.5,0.0001947,3]
[357507032,1744095940242,-186.38443447,0.00019472,2]
[357507033,1744095940262,-300.0,0.00019477,2]
[357507034,1744095940281,-500.0,0.00019478,2]
[357507035,1744095940301,-500.0,0.00019478,2]
[357507036,1744095940321,-500.0,0.00019478,2]
[357507037,1744095940341,-500.0,0.00019478,2]
[357507038,1744095940362,-500.0,0.00019478,2]
[357507039,1744095940384,-500.0,0.00019478,2]
[357507040,1744095940404,-347.37181879,0.00019478,2]
[357507041,1744095940424,-494.83979701,0.00019478,2]
[357507042,1744095940448,-500.0,0.00019478,2]
[357507043,1744095940468,-500.0,0.00019478,2]
[357507044,1744095940489,-500.0,0.00019478,2]
[357507045,1744095940509,-500.0,0.00019478,2]
[357507046,1744095940533,-500.0,0.00019478,2]
[357507047,1744095940553,-500.0,0.00019478,2]
[357507048,1744095940574,-500.0,0.00019478,2]
[357507049,1744095940595,-500.0,0.00019478,2]
[357507050,1744095940616,-500.0,0.00019478,2]
[357507051,1744095940637,-500.0,0.00019478,2]
[357507052,1744095940658,-500.0,0.00019478,2]
[357507053,1744095940679,-500.0,0.00019478,2]
[357507054,1744095940700,-500.0,0.00019478,2]
[357507055,1744095940720,-500.0,0.00019478,2]
[357507056,1744095940741,-500.0,0.00019478,2]
[357507057,1744095940762,-500.0,0.00019478,2]
[357507058,1744095940783,-500.0,0.00019478,2]
[357507059,1744095940803,-500.0,0.00019478,2]
[357507060,1744095940824,-500.0,0.00019478,2]
[357507061,1744095940845,-500.0,0.00019478,2]
[357507062,1744095940866,-500.0,0.00019478,2]
[357507063,1744095940887,-500.0,0.00019478,2]
[357507064,1744095940907,-5554.04,0.00019478,2]
[357507065,1744095940928,-538.37,0.00019478,2]
[357507066,1744095940948,-500.0,0.00019479,2]
[357507067,1744095940967,-500.0,0.00019479,2]
[357507068,1744095940987,-500.0,0.00019479,2]
[357507069,1744095941007,-500.0,0.00019479,2]
[357507070,1744095941026,-500.0,0.00019479,2]
[357507071,1744095941047,-500.0,0.00019479,2]
[357507072,1744095941068,-500.0,0.00019479,2]
[357507073,1744095941087,-500.0,0.00019479,2]
[357507074,1744095941107,-500.0,0.00019479,2]
[357507075,1744095941126,-500.0,0.00019479,2]
[357507076,1744095941148,-500.0,0.00019479,2]
[357507077,1744095941168,-500.0,0.00019479,2]
[357507078,1744095941188,-500.0,0.00019479,2]
[357507079,1744095941207,-500.0,0.00019479,2]
[357507080,1744095941226,-500.0,0.00019479,2]
[357507081,1744095941245,-500.0,0.00019479,2]
[357507082,1744095941265,-500.0,0.00019479,2]
[357507083,1744095941284,-500.0,0.00019479,2]
[357507084,1744095941304,-500.0,0.00019479,2]
[357507085,1744095941323,-500.0,0.00019479,2]
[357507086,1744095941343,-502.01204866,0.00019479,2]
[357507087,1744095941363,-500.0,0.00019479,2]
[357507088,1744095941396,-500.0,0.00019479,2]
[357507089,1744095941417,-500.0,0.00019479,2]
[357507090,1744095941441,-500.0,0.00019479,2]
[357507091,1744095941461,-500.0,0.00019479,2]
[357507092,1744095941483,-500.0,0.00019479,2]
[357507093,1744095941505,-500.0,0.00019479,2]
[357507094,1744095941527,-500.0,0.00019479,2]
[357507095,1744095941548,-527.26,0.00019479,2]
[357507096,1744095941569,-527.4699282,0.00019479,2]
[357507097,1744095941589,-500.0,0.00019479,2]
[357507098,1744095941610,-500.0,0.00019479,2]
[357507099,1744095941631,-500.0,0.00019479,2]
[357507100,1744095941651,-500.0,0.00019479,2]
[357507101,1744095941671,-500.0,0.00019479,2]
[357507102,1744095941690,-500.0,0.00019479,2]
[357507103,1744095941711,-500.0,0.00019479,2]
[357507104,1744095941731,-500.0,0.00019479,2]
[357507105,1744095941752,-500.0,0.00019479,2]
[357507106,1744095941772,-500.0,0.00019479,2]
[357507107,1744095941792,-500.0,0.00019479,2]
[357507108,1744095941813,-500.0,0.00019479,2]
[357507109,1744095941834,-500.0,0.00019479,2]
[357507110,1744095941856,-500.0,0.00019479,2]
[357507111,1744095941876,-500.0,0.00019479,2]
[357507112,1744095941899,-500.0,0.00019479,2]
[357507113,1744095941920,-500.0,0.00019479,2]
[357507114,1744095941941,-500.0,0.00019479,2]
[357507115,1744095941962,-500.0,0.00019479,2]
[357507116,1744095941984,-500.0,0.00019479,2]
[357507117,1744095942005,-500.0,0.00019479,2]
[357507118,1744095942026,-500.0,0.00019479,2]
[357507119,1744095942047,-500.0,0.00019479,2]
[357507120,1744095942074,-500.0,0.00019479,2]
[357507121,1744095942095,-500.0,0.00019479,2]
[357507122,1744095942116,-500.0,0.00019479,2]
[357507123,1744095942137,-500.0,0.00019479,2]
[357507124,1744095942160,-500.0,0.00019479,2]
[357507125,1744095942180,-500.0,0.00019479,2]
[357507126,1744095942200,-500.0,0.00019479,2]
[357507127,1744095942412,-500.0,0.00019479,2]
[357507128,1744095942436,-500.0,0.00019479,2]
[357507129,1744095942457,-500.0,0.00019479,2]
[357507130,1744095942478,-500.0,0.00019479,2]
[357507131,1744095942499,-500.0,0.00019479,2]
[357507132,1744095942520,-625.50574982,0.00019479,2]
[357507133,1744095942540,-500.0,0.00019479,2]
[357507134,1744095942560,-500.0,0.00019479,2]
[357507135,1744095942579,-575.77,0.00019479,2]
[357507136,1744095942599,-500.0,0.00019479,2]
[357507137,1744095942618,-500.0,0.00019479,2]
[357507138,1744095942639,-500.0,0.00019479,2]
[357507139,1744095942658,-500.0,0.00019479,2]
[357507140,1744095942678,-500.0,0.00019479,2]
[357507141,1744095942700,-500.0,0.00019479,2]
[357507142,1744095942720,-500.0,0.00019479,2]
[357507143,1744095942741,-1808.65,0.00019479,2]
[357507144,1744095942760,-500.0,0.00019479,2]
[357507145,1744095942780,-500.0,0.00019479,2]
[357507146,1744095942800,-500.0,0.00019479,2]
[357507147,1744095942820,-500.0,0.00019479,2]
[357507148,1744095942840,-500.0,0.00019479,2]
[357507149,1744095942861,-200.0,0.00019479,2]
[357507150,1744095942885,-500.0,0.00019479,2]
[357507151,1744095942906,-500.0,0.00019479,2]
[357507152,1744095942928,-500.0,0.00019479,2]
[357507153,1744095942950,-500.0,0.00019479,2]
[357507154,1744095942975,-1640.59,0.00019479,2]
[357507155,1744095942998,-503.68999931,0.00019479,2]
[357507156,1744095943020,-500.0,0.00019479,2]
[357507157,1744095943042,-500.0,0.00019479,2]
[357507158,1744095943062,-500.0,0.00019479,2]
[357507159,1744095943084,-500.0,0.00019479,2]
[357507160,1744095943105,-500.0,0.00019479,2]
[357507161,1744095943127,-500.0,0.00019479,2]
[357507162,1744095943153,-500.0,0.00019479,2]
[357507163,1744095943175,-500.0,0.00019479,2]
[357507164,1744095943197,-500.0,0.00019479,2]
[357507165,1744095943217,-500.0,0.00019479,2]
[357507166,1744095943239,-500.0,0.00019479,2]
[357507167,1744095943260,-500.0,0.00019479,2]
[357507168,1744095943283,-793.47,0.00019479,2]
[357507169,1744095943304,-500.0,0.00019479,2]
[357507170,1744095943325,-500.0,0.00019479,2]
[357507171,1744095943347,-500.0,0.00019479,2]
[357507172,1744095943369,-500.0,0.00019479,2]
[357507173,1744095943393,-500.0,0.00019479,2]
[357507174,1744095943414,-338.54598569,0.00019479,2]
[357507175,1744095943438,-721.12,0.00019479,2]
[357507176,1744095943461,-938.02,0.00019479,2]
[357507177,1744095943482,-500.0,0.00019479,2]
[357507178,1744095943503,-500.0,0.00019479,2]
[357507179,1744095943528,-500.0,0.00019479,2]
[357507180,1744095943548,-500.0,0.00019479,2]
[357507181,1744095943569,-204.85674947,0.00019479,2]
[357507182,1744095943591,-500.0,0.00019479,2]
[357507183,1744095943613,-500.0,0.00019479,2]
[357507184,1744095943636,-500.0,0.00019479,2]
[357507185,1744095943656,-500.0,0.00019479,2]
[357507186,1744095943678,-506.22,0.00019479,2]
[357507187,1744095943699,-514.28062778,0.00019479,2]
[357507188,1744095943720,-500.0,0.00019479,2]
[357507189,1744095943741,-500.0,0.00019479,2]
[357507190,1744095943775,-500.0,0.00019479,2]
[357507191,1744095943797,-500.0,0.00019479,2]
[357507192,1744095943820,-500.0,0.00019479,2]
[357507193,1744095943842,-500.0,0.00019479,2]
[357507194,1744095943865,-500.0,0.00019479,2]
[357507195,1744095943888,-500.0,0.00019479,2]
[357507196,1744095943910,-500.0,0.00019479,2]
[357507197,1744095943932,-500.0,0.00019479,2]
[357507198,1744095943953,-500.0,0.00019479,2]
[357507199,1744095943974,-500.0,0.00019479,2]
[357507200,1744095943996,-500.0,0.00019479,2]
[357507201,1744095944017,-500.0,0.00019479,2]
[357507202,1744095944039,-500.0,0.0001948,2]
[357507203,1744095944061,-500.0,0.0001948,2]